fUST/lending_fUST_20251113
["ID","MTS","AMOUNT","RATE_DAILY","PERIOD"]
[393859807,1763044516400,-500.0,0.00045479,120]
[393859808,1763044516442,-500.0,0.00045479,120]
[393859809,1763044516482,-754.53,0.00045479,120]
[393859810,1763044516524,-500.0,0.00045479,120]
[393859811,1763044516564,-500.0,0.00045479,120]
[393859812,1763044516605,-500.0,0.00045479,120]
[393859813,1763044516648,-500.0,0.00045479,120]
[393859814,1763044516689,-500.0,0.00045479,120]
[393859815,1763044516730,-500.0,0.00045479,120]
[393859816,1763044516770,-500.0,0.00045479,120]
[393859817,1763044516811,-500.0,0.00045479,120]
[393859818,1763044516853,-500.0,0.00045479,120]
[393859819,1763044516897,-500.0,0.00045479,120]
[393859820,1763044516940,-604.91,0.00045479,120]
[393859821,1763044516989,-500.0,0.00045479,120]
[393859822,1763044517034,-500.0,0.00045479,120]
[393859823,1763044517077,-500.0,0.00045479,120]
[393859824,1763044517121,-541.9,0.00045479,120]
[393859825,1763044517167,-500.0,0.00045479,120]
[393859826,1763044517217,-500.0,0.00045479,120]
[393859827,1763044517260,-500.0,0.00045479,120]
[393859828,1763044517304,-500.0,0.00045479,120]
[393859829,1763044517349,-500.0,0.00045479,120]
[393859830,1763044517395,-603.65,0.00045479,120]
[393859831,1763044517440,-1206.3,0.00045479,120]
[393859832,1763044517487,-500.0,0.00045479,120]
[393859833,1763044517534,-500.0,0.00045479,120]
[393859834,1763044517581,-500.0,0.00045479,120]
[393859835,1763044517630,-684.51,0.00045479,120]
[393859836,1763044517675,-500.0,0.00045479,120]
[393859837,1763044517721,-500.0,0.00045479,120]
[393859838,1763044517768,-500.0,0.00045479,120]
[393859839,1763044517814,-806.84,0.00045479,120]
[393859840,1763044517861,-500.0,0.00045479,120]
[393859841,1763044517908,-595.59,0.00045479,120]
[393859842,1763044517952,-500.0,0.00045479,120]
[393859843,1763044517997,-500.0,0.00045479,120]
[393859844,1763044518039,-500.0,0.00045479,120]
[393859845,1763044518083,-904.09,0.00045479,120]
[393859846,1763044518130,-500.0,0.00045479,120]
[393859847,1763044518176,-500.0,0.00045479,120]
[393859848,1763044518227,-549.86983783,0.00045479,120]
[393859849,1763044518276,-500.0,0.00045479,120]
[393859850,1763044518324,-500.0,0.00045479,120]
[393859851,1763044518369,-542.78,0.00045479,120]
[393859852,1763044518421,-826.6,0.00045479,120]
[393859853,1763044518471,-500.0,0.00045479,120]
[393859854,1763044518520,-522.21,0.00045479,120]
[393859855,1763044518567,-419.16093,0.00045479,120]
[393859856,1763044518611,-620.15153381,0.00045479,120]
[393859857,1763044518659,-419.16093,0.00045479,120]
[393859858,1763044518704,-500.0,0.00045479,120]
[393859859,1763044518750,-690.26,0.00045479,120]
[393859860,1763044518794,-610.6,0.00045479,120]
[393859861,1763044518839,-419.16093,0.00045479,120]
[393859862,1763044518882,-500.0,0.00045479,120]
[393859863,1763044518927,-612.56,0.00045479,120]
[393859864,1763044518973,-419.16093,0.00045479,120]
[393859865,1763044519019,-500.0,0.00045479,120]
[393859866,1763044519065,-500.0,0.00045479,120]
[393859867,1763044519107,-500.0,0.00045479,120]
[393859868,1763044519163,-500.0,0.00045479,120]
[393859869,1763044519214,-500.0,0.00045479,120]
[393859870,1763044519262,-500.0,0.00045479,120]
[393859871,1763044519310,-967.7,0.00045479,120]
[393859872,1763044519358,-500.0,0.00045479,120]
[393859873,1763044519411,-545.68,0.00045479,30]
[393859874,1763044519459,-500.0,0.00045479,120]
[393859875,1763044519508,-500.0,0.00045479,120]
[393859876,1763044519556,-500.0,0.00045479,120]
[393859877,1763044519603,-500.0,0.00045479,120]
[393859878,1763044519652,-500.0,0.00045479,120]
[393859879,1763044519699,-500.0,0.00045479,120]
[393859880,1763044519747,-743.38646697,0.00045479,120]
[393859881,1763044522809,283.46550654,0.00023,2]
[393859883,1763044620295,199.13,0.00032877,120]
[393859885,1763044678455,177.669168,0.00013699,2]
[393859886,1763044678659,177.669168,0.00020187,2]
[393859889,1763044920356,156.0,0.00025,2]
[393859890,1763044937360,156.0,0.00025,3]
[393859892,1763044994371,156.0,0.000328,120]
[393859893,1763044995223,156.0,0.000328,120]
[393859894,1763045016095,200.0,0.00037501,20]
[393859895,1763045021834,300.0,0.00032,120]
[393859897,1763045209150,-150.0,0.00025377,2]
[393859898,1763045209177,-177.669168,0.00026676,2]
[393859899,1763045209200,-177.0,0.00027377,2]
[393859900,1763045209223,-204.0,0.00029377,2]
[393859901,1763045209246,-231.0,0.00031377,2]
[393859902,1763045209268,-295.21722631,0.000329,120]
[393859903,1763045209290,-177.669168,0.00033165,2]
[393859904,1763045209311,-258.0,0.00033377,120]
[393859905,1763045209333,-295.21722631,0.000339,120]
[393859906,1763045209355,-151.4,0.00034761,60]
[393859907,1763045209376,-151.4,0.00034861,60]
[393859908,1763045209401,-295.21722631,0.000349,120]
[393859909,1763045209423,-151.4,0.00034961,60]
[393859910,1763045209444,-151.4,0.00035061,60]
[393859911,1763045209466,-151.4,0.00035161,60]
[393859912,1763045209487,-316.0,0.00035234,2]
[393859913,1763045209511,-151.4,0.00035261,60]
[393859914,1763045209533,-151.4,0.00035361,60]
[393859915,1763045209554,-240.69719774,0.00035377,120]
[393859916,1763045209574,-300.0,0.00035398,3]
[393859917,1763045209595,-400.0,0.00035398,2]
[393859918,1763045209617,-371.8126424,0.00035398,2]
[393859919,1763045209641,-179.22082,0.00035424,20]
[393859920,1763045209666,-151.4,0.00035461,60]
[393859921,1763045209692,-151.4,0.00035561,60]
[393859922,1763045209717,-176.874,0.00035561,42]
[393859923,1763045209740,-175.325944,0.00035562,120]
[393859924,1763045209765,-156.0,0.000356,42]
[393859925,1763045209787,-403.25052629,0.00035616,5]
[393859926,1763045209811,-151.4,0.00035661,60]
[393859927,1763045209835,-151.4,0.00035761,60]
[393859928,1763045209866,-156.0,0.000358,90]
[393859929,1763045209898,-151.4,0.00035861,60]
[393859930,1763045209924,-295.21722631,0.000359,120]
[393859931,1763045209948,-200.0,0.00036762,120]
[393859932,1763045209972,-157.283892,0.00036969,20]
[393859933,1763045209996,-157.283892,0.00036992,20]
[393859934,1763045210020,-295.21722631,0.00037,120]
[393859935,1763045210043,-156.0,0.00037,120]
[393859936,1763045210067,-214.79032911,0.00037372,2]
[393859937,1763045210091,-233.682574,0.00037499,20]
[393859938,1763045210120,-150.0,0.00037761,2]
[393859939,1763045210147,-156.0,0.000378,78]
[393859940,1763045210174,-491.63051284,0.00038105,30]
[393859941,1763045210201,-300.0,0.00038105,30]
[393859942,1763045210230,-300.0,0.00038105,30]
[393859943,1763045210257,-300.0,0.00038105,30]
[393859944,1763045210281,-300.0,0.00038105,30]
[393859945,1763045210305,-300.0,0.00038105,30]
[393859946,1763045210328,-300.0,0.00038105,30]
[393859947,1763045210350,-164.03299149,0.000389,89]
[393859948,1763045210374,-150.0,0.0003956,2]
[393859949,1763045210401,-177.669168,0.00039654,2]
[393859950,1763045210425,-153.0,0.000398,28]
[393859951,1763045210452,-168.0,0.00040837,2]
[393859952,1763045210477,-150.0,0.00041358,2]
[393859953,1763045210505,-168.0,0.00041477,2]
[393859954,1763045210530,-175.325944,0.00041489,120]
[393859955,1763045210557,-168.0,0.00041767,2]
[393859956,1763045210582,-168.0,0.00042109,2]
[393859957,1763045210605,-1000.0,0.00043,120]
[393859958,1763045210627,-200.16404205,0.00043,120]
[393859959,1763045210658,-150.0,0.00043156,2]
[393859960,1763045210682,-110.94469953,0.00043233,30]
[393859962,1763045403146,362.42,0.00037499,120]
[393859963,1763045407891,339.8709238,0.00037499,20]
[393860020,1763045431667,-150.0,0.00037494,2]
[393860021,1763045431678,-150.0,0.00038008,2]
[393860022,1763045431689,-150.0,0.00039818,2]
[393860023,1763045431700,-160.0,0.0004,120]
[393860024,1763045431711,-156.0,0.00043,7]
[393860025,1763045431722,-168.03189,0.00043,120]
[393860026,1763045431733,-53.07210632,0.00043233,30]
[393860027,1763045431744,-164.01680585,0.00043233,30]
[393860028,1763045431754,-214.68688487,0.0004336,2]
[393860029,1763045431765,-2702.61884446,0.000437,2]
[393860030,1763045431776,-199.13245301,0.000437,2]
[393860031,1763045431786,-497.42945028,0.000437,28]
[393860032,1763045431802,-414.21052196,0.000437,28]
[393860033,1763045431812,-293.21756435,0.000437,2]
[393860034,1763045431823,-185.62,0.00043715,120]
[393860035,1763045431835,-150.5,0.00043725,120]
[393860036,1763045431846,-224.43808161,0.00043734,90]
[393860037,1763045431857,-500.0,0.00043734,7]
[393860038,1763045431867,-36.67898207,0.00043734,31]
[393860039,1763045431880,-213.05276924,0.00043734,31]
[393860040,1763045431891,-568.61767144,0.00043734,7]
[393860041,1763045431902,-461.54573343,0.00043734,31]
[393860042,1763045431914,-337.04884188,0.00043734,31]
[393860043,1763045431926,-222.99717754,0.00043734,31]
[393860044,1763045431938,-239.70263309,0.00043734,31]
[393860045,1763045431949,-500.0,0.00043734,7]
[393860046,1763045431960,-500.0,0.00043734,7]
[393860047,1763045431971,-500.0,0.00043734,7]
[393860048,1763045431982,-500.0,0.00043734,7]
[393860049,1763045431993,-500.0,0.00043734,7]
[393860050,1763045432004,-500.0,0.00043734,7]
[393860051,1763045432015,-500.0,0.00043734,7]
[393860052,1763045432026,-500.0,0.00043734,7]
[393860053,1763045432037,-500.0,0.00043734,7]
[393860054,1763045432054,-500.0,0.00043734,7]
[393860055,1763045432065,-500.0,0.00043734,7]
[393860056,1763045432075,-500.0,0.00043734,7]
[393860057,1763045432086,-500.0,0.00043734,7]
[393860058,1763045432096,-500.0,0.00043734,7]
[393860059,1763045432107,-500.0,0.00043734,7]
[393860060,1763045432118,-500.0,0.00043734,7]
[393860061,1763045432128,-500.0,0.00043734,7]
[393860062,1763045432139,-500.0,0.00043734,7]
[393860063,1763045432150,-500.0,0.00043734,7]
[393860064,1763045432161,-500.0,0.00043734,7]
[393860065,1763045432172,-500.0,0.00043734,7]
[393860066,1763045432183,-500.0,0.00043734,7]
[393860067,1763045432193,-500.0,0.00043734,7]
[393860068,1763045432204,-271.95916527,0.00043734,7]
[393860069,1763045432217,-500.0,0.00043734,7]
[393860070,1763045432229,-500.0,0.00043734,7]
[393860071,1763045432243,-500.0,0.00043734,7]
[393860072,1763045432255,-500.0,0.00043734,7]
[393860073,1763045432266,-347.63248745,0.00043734,7]
[393860074,1763045432279,-500.0,0.00043734,7]
[393860075,1763045432295,-500.0,0.00043734,7]
[393860076,1763045432308,-500.0,0.00043734,7]
[393860077,1763045432321,-500.0,0.00043734,7]
[393860078,1763045432333,-500.0,0.00043734,7]
[393860079,1763045432345,-500.0,0.00043734,7]
[393860080,1763045432357,-500.0,0.00043734,7]
[393860081,1763045432370,-500.0,0.00043734,7]
[393860082,1763045432382,-500.0,0.00043734,7]
[393860083,1763045432394,-500.0,0.00043734,7]
[393860084,1763045432405,-500.0,0.00043734,7]
[393860085,1763045432417,-500.0,0.00043734,7]
[393860086,1763045432429,-32472.96135092,0.00043735,2]
[393860109,1763045438507,-124862.96432533,0.00043735,2]
[393860110,1763045438519,-517.42876019,0.00043735,2]
[393860111,1763045438531,-509.70119414,0.00043735,2]
[393860112,1763045438545,-9662.76530145,0.00043735,2]
[393860126,1763045439877,-608.27954161,0.00043735,2]
[393860127,1763045439890,-890.80323467,0.00043735,2]
[393860128,1763045439939,-2397.88965581,0.00043735,2]
[393860198,1763045444615,-13774.24193,0.00043735,2]
[393860244,1763045445202,-3268.330907,0.00043735,2]
[393860254,1763045445925,-16273.07440856,0.00043735,2]
[393860259,1763045446047,-1349.9999975,0.00043735,2]
[393860266,1763045502107,-570411.55939282,0.00043735,2]
[393860267,1763045502115,-1616.53,0.000438,14]
[393860268,1763045502124,-271.05,0.000438,30]
[393860269,1763045502134,-35772.99593812,0.000438,2]
[393860270,1763045502143,-585.43,0.000438,14]
[393860271,1763045502153,-164.01680585,0.00043808,30]
[393860272,1763045502162,-164.01680585,0.00043808,30]
[393860273,1763045502171,-385.13,0.00043825,30]
[393860274,1763045502181,-320.94,0.00043825,30]
[393860275,1763045502190,-267.45,0.00043825,30]
[393860276,1763045502199,-222.88,0.00043825,30]
[393860277,1763045502207,-185.73,0.00043825,30]
[393860278,1763045502216,-154.77,0.00043825,30]
[393860279,1763045502225,-773.9,0.00043825,30]
[393860280,1763045502235,-500.0,0.00043835,120]
[393860281,1763045502249,-500.0,0.00043835,120]
[393860282,1763045502259,-500.0,0.00043835,120]
[393860283,1763045502268,-544.73,0.00043835,120]
[393860284,1763045502278,-409.24422755,0.00043835,2]
[393860285,1763045502288,-482.28091568,0.00043835,120]
[393860286,1763045502297,-421.4611205,0.00043835,120]
[393860287,1763045502306,-166.62730352,0.00043835,120]
[393860288,1763045502316,-349.93542042,0.00043835,120]
[393860289,1763045502327,-357.57853846,0.00043835,120]
[393860290,1763045502340,-500.0,0.00043835,120]
[393860291,1763045502350,-500.0,0.00043835,120]
[393860292,1763045502359,-392.5042635,0.00043835,120]
[393860293,1763045502369,-195.59665092,0.00043835,120]
[393860294,1763045502379,-393.88322048,0.00043835,120]
[393860295,1763045502389,-500.0,0.00043835,120]
[393860296,1763045502399,-275.90806764,0.00043835,120]
[393860297,1763045502408,-450.63527322,0.00043835,120]
[393860298,1763045502418,-351.85709851,0.00043835,120]
[393860299,1763045502428,-486.27663872,0.00043835,120]
[393860300,1763045502437,-500.0,0.00043835,120]
[393860301,1763045502447,-323.21415624,0.00043835,120]
[393860302,1763045502456,-207.92631263,0.00043835,120]
[393860303,1763045502466,-450.73692224,0.00043835,120]
[393860304,1763045502475,-500.0,0.00043835,120]
[393860305,1763045502485,-267.83534899,0.00043835,120]
[393860306,1763045502495,-327.37852351,0.00043835,120]
[393860307,1763045502505,-288.96478981,0.00043835,120]
[393860308,1763045502514,-400.12915186,0.00043835,120]
[393860309,1763045502524,-483.2542981,0.00043835,120]
[393860310,1763045502533,-342.28493758,0.00043835,120]
[393860311,1763045502544,-500.0,0.00043835,120]
[393860312,1763045502557,-256.1155065,0.00043835,120]
[393860313,1763045502566,-500.0,0.00043835,120]
[393860314,1763045502575,-172.41818723,0.00043835,120]
[393860315,1763045502586,-307.2177183,0.00043835,120]
[393860316,1763045502596,-500.0,0.00043835,120]
[393860317,1763045502605,-478.97045006,0.00043835,120]
[393860318,1763045502615,-390.73984471,0.00043835,120]
[393860319,1763045502624,-198.25717102,0.00043835,120]
[393860320,1763045502634,-1000.0,0.00043835,2]
[393860321,1763045502643,-500.0,0.00043835,120]
[393860322,1763045502653,-205.70525195,0.00043835,120]
[393860323,1763045502662,-224.34384649,0.00043835,120]
[393860324,1763045502672,-608.84,0.00043835,120]
[393860325,1763045502682,-500.0,0.00043835,120]
[393860326,1763045502691,-500.0,0.00043835,120]
[393860327,1763045502701,-500.0,0.00043835,120]
[393860328,1763045502710,-500.0,0.00043835,120]
[393860329,1763045502719,-500.0,0.00043835,120]
[393860330,1763045502729,-260.14868755,0.00043835,120]
[393860331,1763045502738,-183.40429184,0.00043835,120]
[393860332,1763045502748,-500.0,0.00043835,120]
[393860333,1763045502758,-500.0,0.00043835,120]
[393860334,1763045502767,-500.0,0.00043835,120]
[393860335,1763045502777,-565.99,0.00043835,120]
[393860336,1763045502787,-354.69480493,0.00043835,120]
[393860337,1763045502796,-253.69412822,0.00043835,120]
[393860338,1763045502806,-233.12428637,0.00043835,120]
[393860339,1763045502815,-469.17033221,0.00043835,120]
[393860340,1763045502824,-364.23574659,0.00043835,120]
[393860341,1763045502834,-399.35289685,0.00043835,120]
[393860342,1763045502848,-381.47194391,0.00043835,120]
[393860343,1763045502857,-493.82043752,0.00043835,120]
[393860344,1763045502867,-325.86582116,0.00043835,120]
[393860345,1763045502877,-284.0904006,0.00043835,120]
[393860346,1763045502887,-500.0,0.00043835,120]
[393860347,1763045502896,-204.9768813,0.00043835,120]
[393860348,1763045502906,-420.77707407,0.00043835,120]
[393860349,1763045502916,-376.61028998,0.00043835,120]
[393860350,1763045502927,-500.0,0.00043835,120]
[393860351,1763045502938,-498.27457123,0.00043835,120]
[393860352,1763045502947,-500.0,0.00043835,120]
[393860353,1763045502957,-430.16940366,0.00043835,120]
[393860354,1763045502967,-500.0,0.00043835,120]
[393860355,1763045502977,-500.0,0.00043835,120]
[393860356,1763045502986,-430.01126348,0.00043835,120]
[393860357,1763045502996,-356.59271695,0.00043835,120]
[393860358,1763045503005,-500.0,0.00043835,120]
[393860359,1763045503015,-500.0,0.00043835,120]
[393860360,1763045503025,-500.0,0.00043835,120]
[393860361,1763045503034,-283.78478932,0.00043835,120]
[393860362,1763045503044,-286.31581246,0.00043835,120]
[393860363,1763045503054,-190.43376373,0.00043835,120]
[393860364,1763045503064,-200.0,0.00043835,120]
[393860365,1763045503073,-500.0,0.00043835,120]
[393860366,1763045503083,-346.62159579,0.00043835,120]
[393860367,1763045503098,-500.0,0.00043835,120]
[393860368,1763045503108,-500.0,0.00043835,120]
[393860369,1763045503118,-500.0,0.00043835,120]
[393860370,1763045503130,-428.17596672,0.00043835,120]
[393860371,1763045503141,-226.64092688,0.00043835,120]
[393860372,1763045503150,-500.0,0.00043835,120]
[393860373,1763045503160,-1000.0,0.00043835,120]
[393860374,1763045503170,-500.0,0.00043835,120]
[393860375,1763045503179,-500.0,0.00043835,120]
[393860376,1763045503189,-473.18157113,0.00043835,120]
[393860377,1763045503198,-500.0,0.00043835,120]
[393860378,1763045503208,-732.35,0.00043835,120]
[393860379,1763045503219,-204.38666779,0.00043835,120]
[393860380,1763045503229,-176.0102657,0.00043835,120]
[393860381,1763045503239,-346.61198552,0.00043835,120]
[393860382,1763045503252,-269.07997144,0.00043835,120]
[393860383,1763045503261,-500.0,0.00043835,120]
[393860384,1763045503271,-500.0,0.00043835,120]
[393860385,1763045503280,-284.06193415,0.00043835,120]
[393860386,1763045503291,-466.10193769,0.00043835,120]
[393860387,1763045503301,-467.54747538,0.00043835,120]
[393860388,1763045503311,-500.0,0.00043835,120]
[393860389,1763045503321,-403.295,0.00043835,120]
[393860390,1763045503330,-500.0,0.00043835,120]
[393860391,1763045503348,-408.78784649,0.00043835,120]
[393860392,1763045503366,-407.52481974,0.00043835,120]
[393860393,1763045503376,-444.55129172,0.00043835,120]
[393860394,1763045503385,-227.80812884,0.00043835,120]
[393860395,1763045503395,-500.0,0.00043835,120]
[393860396,1763045503404,-570.02,0.00043835,120]
[393860397,1763045503414,-492.02260372,0.00043835,120]
[393860398,1763045503423,-502.75,0.00043835,120]
[393860399,1763045503433,-500.0,0.00043835,120]
[393860400,1763045503442,-245.49575267,0.00043835,120]
[393860401,1763045503453,-500.0,0.00043835,120]
[393860402,1763045503462,-378.96078016,0.00043835,120]
[393860403,1763045503472,-323.8776516,0.00043835,120]
[393860404,1763045503482,-467.81003619,0.00043835,120]
[393860405,1763045503491,-500.0,0.00043835,120]
[393860406,1763045503502,-393.87970069,0.00043835,120]
[393860407,1763045503512,-500.0,0.00043835,120]
[393860408,1763045503523,-500.0,0.00043835,120]
[393860409,1763045503536,-500.0,0.00043835,120]
[393860410,1763045503546,-585.51,0.00043835,120]
[393860411,1763045503557,-246.54402207,0.00043835,120]
[393860412,1763045503568,-500.0,0.00043835,120]
[393860413,1763045503580,-336.21272653,0.00043835,120]
[393860414,1763045503597,-460.38802428,0.00043835,120]
[393860415,1763045503610,-500.0,0.00043835,120]
[393860416,1763045503622,-500.0,0.00043835,120]
[393860417,1763045503633,-500.0,0.00043835,120]
[393860418,1763045503644,-1000.0,0.00043835,2]
[393860419,1763045503656,-223.76349522,0.00043835,120]
[393860420,1763045503668,-500.0,0.00043835,120]
[393860421,1763045503679,-327.62025997,0.00043835,120]
[393860422,1763045503690,-351.65996309,0.00043835,120]
[393860423,1763045503701,-220.82520966,0.00043835,120]
[393860424,1763045503714,-431.58561367,0.00043835,120]
[393860425,1763045503726,-381.44629955,0.00043835,30]
[393860426,1763045503738,-193.60735417,0.00043835,120]
[393860427,1763045503750,-353.2978091,0.00043835,120]
[393860428,1763045503761,-395.02377611,0.00043835,120]
[393860429,1763045503772,-527.90507699,0.00043835,120]
[393860430,1763045503783,-488.21547396,0.00043835,120]
[393860431,1763045503795,-500.0,0.00043835,120]
[393860432,1763045503807,-500.0,0.00043835,120]
[393860433,1763045503820,-500.0,0.00043835,120]
[393860434,1763045503831,-464.86373634,0.00043835,120]
[393860435,1763045503854,-500.0,0.00043835,120]
[393860436,1763045503866,-477.0309854,0.00043835,120]
[393860437,1763045503877,-397.3518463,0.00043835,120]
[393860438,1763045503890,-500.0,0.00043835,120]
[393860439,1763045503901,-396.34480204,0.00043835,120]
[393860440,1763045503911,-230.10428992,0.00043835,120]
[393860441,1763045503922,-500.0,0.00043835,120]
[393860442,1763045503932,-500.0,0.00043835,120]
[393860443,1763045503943,-445.02860746,0.00043835,120]
[393860444,1763045503953,-365.49237338,0.00043835,120]
[393860445,1763045503964,-327.80780379,0.00043835,120]
[393860446,1763045503974,-384.02679662,0.00043835,120]
[393860447,1763045503985,-415.91695691,0.00043835,120]
[393860448,1763045503995,-500.0,0.00043835,120]
[393860449,1763045504006,-514.82,0.00043835,120]
[393860450,1763045504016,-500.0,0.00043835,120]
[393860451,1763045504026,-500.0,0.00043835,120]
[393860452,1763045504036,-500.0,0.00043835,120]
[393860453,1763045504047,-300.61860613,0.00043835,120]
[393860454,1763045504057,-500.0,0.00043835,120]
[393860455,1763045504068,-500.0,0.00043835,120]
[393860456,1763045504079,-500.0,0.00043835,120]
[393860457,1763045504089,-500.0,0.00043835,120]
[393860458,1763045504100,-333.71994481,0.00043835,120]
[393860459,1763045504110,-403.06726857,0.00043835,120]
[393860460,1763045504121,-474.44892467,0.00043835,120]
[393860461,1763045504131,-577.09,0.00043835,120]
[393860462,1763045504142,-500.0,0.00043835,120]
[393860463,1763045504152,-834.01,0.00043835,120]
[393860464,1763045504163,-500.0,0.00043835,120]
[393860465,1763045504172,-969.65,0.00043835,120]
[393860466,1763045504182,-500.0,0.00043835,120]
[393860467,1763045504192,-475.40764716,0.00043835,60]
[393860468,1763045504203,-375.8844537,0.00043835,120]
[393860469,1763045504214,-263.21476731,0.00043835,120]
[393860470,1763045504224,-1066.87,0.00043835,7]
[393860471,1763045504234,-1264.73,0.00043835,30]
[393860472,1763045504245,-172.44649823,0.00043835,120]
[393860473,1763045504256,-500.0,0.00043835,120]
[393860474,1763045504266,-177.29395327,0.00043835,120]
[393860475,1763045504282,-787.85,0.00043835,120]
[393860476,1763045504293,-552.73,0.00043835,120]
[393860477,1763045504303,-622.81121342,0.00043835,120]
[393860478,1763045504315,-2599.22,0.00043835,2]
[393860479,1763045504325,-222.04424015,0.00043835,120]
[393860480,1763045504335,-500.0,0.00043835,120]
[393860481,1763045504362,-500.0,0.00043835,120]
[393860482,1763045504513,-243.56130789,0.00043835,120]
[393860483,1763045504524,-500.0,0.00043835,120]
[393860484,1763045504533,-228.16535412,0.00043835,120]
[393860485,1763045504543,-500.0,0.00043835,120]
[393860486,1763045504553,-500.0,0.00043835,120]
[393860487,1763045504562,-411.96897686,0.00043835,120]
[393860488,1763045504572,-736.82,0.00043835,120]
[393860489,1763045504591,-458.01521848,0.00043835,120]
[393860490,1763045504601,-500.0,0.00043835,120]
[393860491,1763045504611,-437.47867568,0.00043835,120]
[393860492,1763045504621,-500.0,0.00043835,120]
[393860493,1763045504630,-500.0,0.00043835,120]
[393860494,1763045504639,-428.92315051,0.00043835,120]
[393860495,1763045504649,-500.0,0.00043835,120]
[393860496,1763045504659,-393.23374169,0.00043835,120]
[393860497,1763045504669,-403.96229914,0.00043835,120]
[393860498,1763045504679,-512.47,0.00043835,120]
[393860499,1763045504689,-500.0,0.00043835,120]
[393860500,1763045504698,-500.0,0.00043835,120]
[393860501,1763045504708,-500.0,0.00043835,120]
[393860502,1763045504718,-534.45,0.00043835,120]
[393860503,1763045504728,-398.99978711,0.00043835,120]
[393860504,1763045504738,-441.17649512,0.00043835,120]
[393860505,1763045504747,-385.31277395,0.00043835,120]
[393860506,1763045504757,-371.81124723,0.00043835,120]
[393860507,1763045504767,-500.0,0.00043835,120]
[393860508,1763045504777,-392.58806257,0.00043835,120]
[393860509,1763045504787,-492.1646033,0.00043835,120]
[393860510,1763045504796,-500.0,0.00043835,120]
[393860511,1763045504807,-480.24706469,0.00043835,120]
[393860512,1763045504816,-406.23268776,0.00043835,120]
[393860513,1763045504826,-428.75797156,0.00043835,120]
[393860514,1763045504835,-274.07437467,0.00043835,120]
[393860515,1763045504856,-500.0,0.00043835,120]
[393860516,1763045504865,-500.0,0.00043835,120]
[393860517,1763045504876,-500.0,0.00043835,120]
[393860518,1763045504886,-500.0,0.00043835,120]
[393860519,1763045504898,-500.0,0.00043835,120]
[393860520,1763045504908,-234.1417422,0.00043835,120]
[393860521,1763045504918,-251.10250933,0.00043835,120]
[393860522,1763045504927,-244.0908873,0.00043835,120]
[393860523,1763045504937,-438.75699285,0.00043835,120]
[393860524,1763045504948,-539.92,0.00043835,120]
[393860525,1763045504958,-500.0,0.00043835,120]
[393860526,1763045504968,-500.0,0.00043835,120]
[393860527,1763045504978,-500.0,0.00043835,120]
[393860528,1763045504988,-436.39743075,0.00043835,120]
[393860529,1763045504999,-500.0,0.00043835,2]
[393860530,1763045505008,-360.75250611,0.00043835,120]
[393860531,1763045505018,-476.45586962,0.00043835,120]
[393860532,1763045505027,-500.0,0.00043835,120]
[393860533,1763045505038,-500.0,0.00043835,120]
[393860534,1763045505048,-500.0,0.00043835,120]
[393860535,1763045505059,-500.0,0.00043835,120]
[393860536,1763045505070,-500.0,0.00043835,120]
[393860537,1763045505080,-381.24512007,0.00043835,120]